bitfinex-derivatives/quotes_SOLF0:USTF0_20251115
["timestamp","ask_amount","ask_price","bid_price","bid_amount"]
[1763201696513,0.05236448,140.96,140.95,3.22]
[1763201697815,0.05236448,140.96,140.95,9.85642877]
[1763201700110,0.05236448,140.96,140.95,3.22]
[1763201700515,69.03556278,140.99,140.96,3.22]
[1763201700710,72.39556278,140.99,140.97,8.87406204]
[1763201700912,72.39556278,140.99,140.98,8.87406204]
[1763201700913,63.52144325,140.99,140.98,8.87406204]
[1763201701616,3.36,140.98,140.97,0.05141726]
[1763201701808,4.95609475,140.98,140.97,0.05141726]
[1763201704317,1.59609475,140.98,140.97,3.17141726]
[1763201704915,3.09,140.97,140.96,6.64878546]
[1763201705218,3.09,140.96,140.91,6.64819129]
[1763201705418,4.68609475,140.92,140.89,9.76819129]
[1763201705619,79.02609475,140.92,140.89,9.76819129]
[1763201705817,3.09,140.91,140.89,9.76819129]
[1763201706019,3.14343896,140.91,140.89,9.81943677]
[1763201706419,0.05343896,140.91,140.89,9.81943677]
[1763201708118,3.14343896,140.91,140.89,0.05124548]
[1763201709317,4.68609475,140.9,140.89,0.05124548]
[1763201711223,6.10609475,140.9,140.84,9.76819129]
[1763201711524,3.1,140.86,140.84,6.64819129]
[1763201711822,74.36,140.86,140.83,3.18]
[1763201712022,74.36,140.86,140.84,3.18]
[1763201712423,74.40708816,140.86,140.84,3.22609992]
[1763201712618,0.04708816,140.86,140.85,3.18]
[1763201714318,3.14708816,140.86,140.84,0.04609992]
[1763201714523,3.14708816,140.86,140.84,3.22609992]
[1763201719224,0.04708816,140.86,140.84,3.22609992]
[1763201719430,12.07609475,140.89,140.84,3.22609992]
[1763201719628,3.1,140.88,140.84,3.22609992]
[1763201720130,15.17609475,140.89,140.84,3.22609992]
[1763201720324,3.1,140.88,140.84,3.22609992]
[1763201720532,3.14763155,140.88,140.84,3.22609992]
[1763201721728,3.14763155,140.88,140.84,0.04609992]
[1763201721929,3.1,140.87,140.84,0.04609992]
[1763201726130,3.1,140.87,140.84,3.22609992]
[1763201726528,5.64454693,140.88,140.84,3.22609992]
[1763201726727,3.14763155,140.88,140.84,3.22609992]
[1763201727030,0.04763155,140.88,140.84,3.22609992]
[1763201727430,3.14763155,140.88,140.84,3.22609992]
[1763201727827,0.04763155,140.88,140.84,3.22609992]
[1763201729036,0.04763155,140.88,140.85,3.18]
[1763201732337,0.04763155,140.88,140.85,9.82819129]
[1763201732738,0.04763155,140.88,140.86,3.18]
[1763201733939,3.37763155,140.88,140.85,3.08]
[1763201734439,3.37763155,140.88,140.84,3.12609992]
[1763201735639,0.04763155,140.88,140.84,3.12609992]
[1763201736838,3.37763155,140.88,140.84,3.12609992]
[1763201737041,3.33,140.87,140.84,0.04609992]
[1763201740341,3.33,140.85,140.84,0.04609992]
[1763201747246,2.49691538,140.86,140.84,3.12609992]
[1763201747543,5.82691538,140.86,140.84,3.12609992]
[1763201747746,3.33,140.86,140.84,3.12609992]
[1763201747948,5.87454693,140.88,140.84,3.12609992]
[1763201748147,3.33,140.87,140.84,3.12609992]
[1763201749648,2.54454693,140.88,140.84,3.12609992]
[1763201750049,5.87454693,140.88,140.84,3.12609992]
[1763201750554,3.33,140.87,140.84,3.12609992]
[1763201751052,3.33,140.87,140.84,0.04609992]
[1763201752158,3.33,140.85,140.84,0.04609992]
[1763201752557,3.33,140.84,140.79,6.64819129]
[1763201752763,3.33,140.82,140.79,6.64819129]
[1763201752958,2.49691538,140.83,140.79,6.64819129]
[1763201753159,2.49691538,140.83,140.8,3.08]
[1763201753369,2.49691538,140.84,140.79,6.64819129]
[1763201753664,0.04674432,140.83,140.8,0.05107631]
[1763201754866,5.82691538,140.82,140.8,0.05107631]
[1763201755066,5.82691538,140.82,140.76,3.08]
[1763201755067,3.33,140.81,140.76,6.64819129]
[1763201755268,3.33,140.79,140.76,6.64819129]
[1763201756159,3.37578371,140.79,140.76,6.70210361]
[1763201756665,3.37578371,140.79,140.76,9.78210361]
[1763201757461,0.04578371,140.79,140.77,3.08]
[1763201757665,0.04578371,140.79,140.77,9.72819129]
[1763201757861,0.04578371,140.79,140.78,3.08]
[1763201761066,0.04578371,140.79,140.76,3.13391232]
[1763201761067,3.37578371,140.79,140.76,3.13391232]
[1763201761964,0.04578371,140.79,140.76,3.13391232]
[1763201762664,3.37578371,140.79,140.76,3.13391232]
[1763201765570,3.37578371,140.79,140.76,0.05391232]
[1763201770272,3.24,140.78,140.76,0.05391232]
[1763201773073,3.22578371,140.79,140.76,0.05391232]
[1763201773271,3.18,140.78,140.76,0.05391232]
[1763201773474,3.18,140.76,140.72,3.23]
[1763201774474,0.0543056,140.75,140.74,3.23]
[1763201774674,0.05419625,140.76,140.74,3.23]
[1763201777279,0.05419625,140.76,140.74,9.87819129]
[1763201777468,0.05419625,140.76,140.75,3.23]
[1763201782877,3.18,140.82,140.76,3.23]
[1763201783077,4.77939255,140.83,140.78,3.23]
[1763201783280,3.18,140.82,140.78,3.23]
[1763201783479,1.59939255,140.83,140.78,3.23]
[1763201783783,0.0471872,140.82,140.8,3.23]
[1763201784178,3.2271872,140.82,140.79,0.04902057]
[1763201787286,3.2271872,140.82,140.79,3.27902057]
[1763201787580,0.0471872,140.82,140.79,3.27902057]
[1763201788087,0.0471872,140.82,140.81,3.23]
[1763201789079,3.18,140.86,140.81,3.23]
[1763201789478,3.18,140.84,140.81,3.23]
[1763201790088,3.22662314,140.84,140.81,3.2818727]
[1763201791187,0.04662314,140.84,140.81,3.2818727]
[1763201791388,0.04662314,140.84,140.82,3.23]
[1763201791579,0.04662314,140.84,140.81,3.2818727]
[1763201791580,3.22662314,140.84,140.81,3.2818727]
[1763201793790,3.18,140.82,140.81,0.0518727]
[1763201794691,4.6,140.82,140.81,0.0518727]
[1763201794893,3.18,140.82,140.81,0.0518727]
[1763201795089,4.6,140.82,140.81,0.0518727]
[1763201795295,3.18,140.82,140.76,9.84652708]
[1763201795495,3.11,140.78,140.76,6.61652708]
[1763201795794,1.59939255,140.79,140.76,6.61652708]
[1763201796393,1.59939255,140.79,140.76,6.66808763]
[1763201796394,1.64479928,140.79,140.76,6.66808763]
[1763201797597,0.39,140.78,140.76,6.66808763]
[1763201797788,0.39,140.78,140.76,0.05156055]
[1763201798494,1.98939255,140.77,140.76,0.05156055]
[1763201802290,0.39,140.77,140.76,0.05156055]
[1763201803496,1.98939255,140.77,140.76,0.05156055]
[1763201804496,0.39,140.77,140.76,0.05156055]
[1763201804696,1.98939255,140.77,140.76,0.05156055]
[1763201805595,0.39,140.77,140.76,0.05156055]
[1763201812501,0.39,140.77,140.71,6.61652708]
[1763201812704,0.39,140.75,140.71,6.61652708]
[1763201812901,0.39,140.75,140.71,9.99652708]
[1763201813101,0.39,140.75,140.71,3.38]
[1763201813604,0.05451031,140.74,140.73,3.38]
[1763201813798,0.44296075,140.75,140.73,3.38]
[1763201815794,0.05296075,140.75,140.73,3.38]
[1763201818896,1.59939255,140.78,140.74,3.38]
[1763201819903,0.04892526,140.77,140.74,3.38]
[1763201826708,0.04892526,140.77,140.74,10.00255161]
[1763201827105,0.04892526,140.77,140.75,3.11]
[1763201834214,0.04892526,140.77,140.76,3.22]
[1763201834809,1.98939255,140.81,140.76,3.22]
[1763201834810,0.39,140.8,140.76,3.22]
[1763201835208,0.39,140.8,140.77,3.22]
[1763201835716,0.43811943,140.8,140.77,3.22]
[1763201837413,0.04811943,140.8,140.77,3.22]
[1763201838320,0.04811943,140.8,140.78,9.84255161]
[1763201838517,0.04811943,140.8,140.79,3.22]
[1763201840219,1.98939255,140.85,140.79,3.22]
[1763201840721,0.39,140.84,140.81,3.22]
[1763201841218,0.44034719,140.84,140.81,3.26867798]
[1763201847025,0.05034719,140.84,140.81,3.26867798]
[1763201858934,0.44034719,140.84,140.81,3.26867798]
[1763201859335,0.05034719,140.84,140.81,3.26867798]
[1763201862131,0.44034719,140.84,140.81,0.04867798]
[1763201862336,2.88833953,140.83,140.81,0.04867798]
[1763201863335,0.44034719,140.84,140.81,3.11867798]
[1763201865938,74.80034719,140.84,140.81,3.11867798]
[1763201867942,0.05034719,140.84,140.81,3.11867798]
[1763201870833,0.44,140.93,140.83,3.07]
[1763201871039,2.93833953,140.91,140.85,3.07]
[1763201871234,2.49833953,140.91,140.85,3.07]
[1763201871439,74.36,140.92,140.86,3.07]
[1763201871633,74.36,140.92,140.87,3.07]
[1763201871835,0.04682197,140.91,140.88,0.04667707]
[1763201872040,0.04682197,140.91,140.89,3.07]
[1763201874747,2.49833953,140.93,140.9,3.07]
[1763201875541,2.54834084,140.93,140.9,3.07]
[1763201876449,0.05000131,140.93,140.9,3.07]
[1763201880051,2.98834084,140.93,140.9,3.07]
[1763201882051,0.44,140.92,140.89,3.07]
[1763201882753,0.05000131,140.93,140.89,3.07]
[1763201884254,2.49833953,140.98,140.9,3.24]
[1763201884456,2.49833953,140.98,140.91,3.24]
[1763201885454,0.05408401,140.96,140.94,3.24]
[1763201888857,5.14496221,141.02,140.94,3.24]
[1763201889054,2.49833953,141.0,140.94,3.24]
[1763201889264,6.40833953,141.02,140.94,3.24]
[1763201889865,0.04992238,140.99,140.98,3.24]
[1763201895168,2.98833953,141.04,140.98,3.24]
[1763201896068,0.49,141.03,140.98,3.24]
[1763201896268,0.5444574,141.02,140.98,3.24]
[1763201904071,0.0544574,141.02,140.98,3.24]
[1763201904768,0.5444574,141.02,140.98,3.24]
[1763201904971,2.13942648,141.02,140.98,3.24]
[1763201905165,1.64942648,141.02,140.98,3.24]
[1763201905570,2.13942648,141.02,140.98,3.24]
[1763201906772,1.64942648,141.02,140.98,3.24]
[1763201907068,0.0544574,141.02,141.0,3.31]
[1763201907460,75.89496908,141.06,141.0,3.31]
[1763201908267,74.3,141.06,141.02,3.31]
[1763201908472,74.3,141.06,141.04,3.31]
[1763201913075,74.3,141.06,141.05,1.59496908]
[1763201913268,68.75064912,141.06,141.05,4.90496908]
[1763201915571,0.49,141.11,141.06,3.08]
[1763201915778,0.49,141.11,141.07,3.13432777]
[1763201916270,0.49,141.1,141.07,3.13432777]
[1763201921774,74.24,141.12,141.07,3.13432777]
[1763201921775,0.49,141.08,141.07,0.05432777]
[1763201922582,0.49,141.08,141.03,3.08]
[1763201922782,0.49,141.06,141.03,3.08]
[1763201923374,2.08496908,141.07,141.03,3.08]
[1763201924882,0.49,141.06,141.03,3.08]
[1763201927478,2.08496908,141.07,141.03,3.08]
[1763201927877,1.59496908,141.09,141.03,3.08]
[1763201928084,1.59496908,141.09,141.05,3.08]
[1763201928474,0.49,141.1,141.05,3.08]
[1763201929279,1.59496908,141.11,141.05,3.08]
[1763201930083,2.08496908,141.11,141.05,3.08]
[1763201933577,0.49,141.11,141.05,3.08]
[1763201933886,0.49,141.11,141.07,3.08]
[1763201934586,2.08496908,141.1,141.07,3.08]
[1763201935084,0.49,141.09,141.05,3.08]
[1763201935286,2.08496908,141.08,141.05,3.08]
[1763201936491,0.49,141.07,141.03,9.65360168]
[1763201936787,1.59496908,141.06,141.03,3.08]
[1763201936986,2.08496908,141.06,141.03,3.08]
[1763201937480,66.18,141.12,141.03,3.08]
[1763201937787,0.49,141.06,141.03,3.08]
[1763201938386,0.49,141.04,141.0,3.08]
[1763201938692,2.08496908,141.03,141.0,3.08]
[1763201939487,2.08496908,141.03,140.99,6.57360168]
[1763201939488,0.49,141.02,140.99,9.65360168]
[1763201939690,0.49,141.02,140.99,3.08]
[1763201940588,1.59496908,141.07,141.02,3.08]
[1763201940792,2.08496908,141.07,141.02,3.08]
[1763201941691,48.54,141.08,141.02,3.08]
[1763201942090,50.13496908,141.08,141.02,3.08]
[1763201942284,48.54,141.08,141.02,9.65360168]
[1763201942485,48.54,141.08,141.04,3.08]
[1763201945892,49.03,141.08,141.04,3.08]
[1763201946192,48.54,141.08,141.04,3.08]
[1763201946399,1.23364884,141.13,141.07,1.59496908]
[1763201946698,0.49,141.13,141.09,3.35]
[1763201947495,2.08496908,141.14,141.1,3.35]
[1763201948192,0.49,141.13,141.1,3.35]
[1763201948390,0.49,141.11,141.06,6.57360168]
[1763201948597,1.59496908,141.12,141.06,6.57360168]
[1763201948598,0.49,141.09,141.06,3.35]
[1763201950199,0.49,141.07,141.04,9.92360168]
[1763201950389,1.59496908,141.06,141.04,6.57360168]
[1763201950597,0.49,141.05,141.03,6.57360168]
[1763201950895,0.49,141.05,141.02,6.57360168]
[1763201951098,2.08496908,141.04,141.01,9.92360168]
[1763201951293,1.59496908,141.04,141.02,3.35]
[1763201951889,0.49,141.03,141.0,6.57360168]
[1763201952097,1.59496908,141.02,141.0,6.57360168]
[1763201952601,2.08496908,141.02,141.0,6.57360168]
[1763201953596,1.59496908,141.02,141.0,9.92360168]
[1763201954495,0.49,141.03,141.0,6.57360168]
[1763201954700,0.49,141.03,140.97,1.59496908]
[1763201954701,0.49,141.01,140.97,6.57360168]
[1763201954900,0.49,141.01,140.97,9.94360168]
[1763201956004,0.49,141.09,140.97,3.37]
[1763201956303,0.49,141.05,140.98,3.37]
[1763201956504,2.08496908,141.04,140.98,3.37]
[1763201956904,0.49,141.03,140.98,3.37]
[1763201957607,0.49,141.03,140.97,1.59496908]
[1763201957608,1.59496908,141.02,140.96,6.57360168]
[1763201957805,0.49,141.01,140.95,11.53857076]
[1763201958398,0.49,140.99,140.94,9.94360168]
[1763201958599,0.49,140.99,140.94,3.37]
[1763201958994,2.08496908,140.98,140.94,3.37]
[1763201959406,1.59496908,141.0,140.94,3.37]
[1763201959704,2.08496908,141.0,140.94,3.37]
[1763201959905,0.49,140.99,140.94,3.37]
[1763201961203,0.49,140.97,140.94,3.37]
[1763201962302,1.59496908,141.0,140.94,3.37]
[1763201966505,1.59496908,141.0,140.95,3.37]
[1763201967009,0.49,141.01,140.95,3.37]
[1763201968008,0.49,140.96,140.9,6.57360168]
[1763201968307,2.49275306,140.92,140.86,3.37]
[1763201968508,0.49,140.91,140.86,3.37]
[1763201968810,2.98275306,140.9,140.86,3.37]
[1763201969004,2.49275306,140.93,140.86,3.37]
[1763201969212,0.49,140.9,140.83,3.37]
[1763201971505,0.49,140.93,140.85,3.37]
[1763201972514,2.49275306,140.95,140.87,3.37]
[1763201972714,0.49,140.96,140.87,3.37]
[1763201974518,0.49,140.94,140.87,3.37]
[1763201982721,7.87,140.97,140.87,3.37]
[1763201986720,0.49,140.97,140.87,3.37]
[1763201986924,6.66978433,141.0,140.87,3.37]
[1763201987225,0.49,140.99,140.87,3.37]
[1763201994821,2.98412638,140.99,140.9,3.11]
[1763201995528,0.49,140.98,140.9,3.11]
[1763201997031,0.04558393,140.95,140.93,3.1604306]
[1763201998632,0.53558393,140.95,140.93,0.0504306]
[1763201998830,0.04558393,140.95,140.93,3.1604306]
[1763202000335,0.49,140.94,140.93,0.0504306]
[1763202000634,0.49,140.94,140.87,3.11]
[1763202000932,76.81412638,140.93,140.87,3.11]
[1763202001529,74.32,140.93,140.89,0.05422503]
[1763202001734,0.04686964,140.91,140.9,3.11]
[1763202002036,74.81,140.97,140.9,3.11]
[1763202002633,0.54,140.96,140.9,3.11]
[1763202003136,0.58595033,140.94,140.92,0.0516456]
[1763202003335,0.59224572,140.94,140.92,0.05439545]
[1763202003531,3.03412638,140.93,140.92,0.05439545]
[1763202003737,0.54,140.92,140.86,3.11]
[1763202004739,0.05094011,140.9,140.89,3.37]
[1763202004931,0.04949731,140.91,140.89,3.37]
[1763202006740,0.04949731,140.91,140.88,3.42442377]
[1763202007740,0.58949731,140.91,140.88,0.05442377]
[1763202008140,0.58949731,140.91,140.88,3.42442377]
[1763202009037,0.58949731,140.91,140.88,0.05442377]
[1763202009243,0.54,140.89,140.82,3.37]
[1763202009443,0.54,140.86,140.82,3.37]
[1763202010735,77.39412638,140.89,140.82,3.37]
[1763202011641,77.39412638,140.89,140.8,8.81459897]
[1763202011642,0.05262101,140.87,140.85,3.37]
[1763202017857,74.36,140.91,140.85,4.79]
[1763202018059,74.36,140.91,140.86,3.17]
[1763202018951,0.04780737,140.9,140.88,3.17]
[1763202025859,74.36,140.91,140.88,3.17]
[1763202025860,70.05180852,140.91,140.88,3.17]
[1763202026168,77.73,140.97,140.88,3.17]
[1763202026566,77.73,140.97,140.89,3.17]
[1763202026863,0.05418929,140.94,140.93,3.17]
[1763202029267,0.05418929,140.94,140.92,0.05185601]
[1763202029569,0.05418929,140.94,140.92,3.22185601]
[1763202032175,3.44418929,140.94,140.92,0.05185601]
[1763202032767,3.39,140.93,140.89,9.78315956]
[1763202032967,3.39,140.93,140.89,3.17]
[1763202033769,3.93482227,140.94,140.89,3.17]
[1763202033975,0.05418929,140.94,140.91,3.32]
[1763202034169,0.04576364,140.94,140.91,3.32]
[1763202035372,3.38576364,140.94,140.91,3.32]
[1763202036678,0.04576364,140.94,140.91,3.32]
[1763202038572,3.38576364,140.94,140.9,0.04727188]
[1763202038777,3.38576364,140.94,140.9,3.36727188]
[1763202038980,3.34,140.93,140.9,0.04727188]
[1763202040884,1.597478,140.91,140.9,0.04727188]
[1763202045084,4.937478,140.91,140.9,0.04727188]
[1763202045286,4.937478,140.91,140.87,3.32]
[1763202045487,1.597478,140.89,140.87,3.32]
[1763202046287,1.65151766,140.89,140.87,3.37258773]
[1763202046581,0.05403966,140.89,140.87,3.37258773]
[1763202053994,4.74,140.96,140.89,3.32]
[1763202054296,6.337478,140.96,140.89,3.32]
[1763202054895,6.337478,140.96,140.92,3.32]
[1763202054896,0.05227441,140.94,140.92,3.32]
[1763202056000,3.39227441,140.94,140.92,3.32]
[1763202056400,0.05227441,140.94,140.92,3.32]
[1763202071012,3.44227441,140.94,140.92,3.32]
[1763202071213,3.44227441,140.94,140.91,3.30948781]
[1763202071912,3.44227441,140.94,140.91,0.04948781]
[1763202072116,3.44227441,140.94,140.91,3.30948781]
[1763202072310,5.03975241,140.94,140.91,3.30948781]
[1763202073012,3.44227441,140.94,140.91,3.30948781]
[1763202073613,0.05227441,140.94,140.91,3.30948781]
[1763202074611,3.44227441,140.94,140.91,3.30948781]
[1763202077008,0.05227441,140.94,140.91,3.30948781]
[1763202083013,0.05227441,140.94,140.91,4.90696581]
[1763202083210,3.39,141.01,140.92,3.26]
[1763202083520,3.39,141.01,140.94,3.26]
[1763202084314,0.04920318,140.99,140.97,3.26]
[1763202085221,0.04920318,140.99,140.97,4.857478]
[1763202085519,0.0019313,140.99,140.98,3.26]
[1763202086422,3.39,141.08,140.99,3.26]
[1763202086623,3.39,141.08,141.01,3.26]
[1763202086624,4.987478,141.08,141.01,3.26]
[1763202087324,4.987478,141.08,141.03,0.04801398]
[1763202087520,3.39,141.07,141.03,3.30801398]
[1763202089128,4.987478,141.09,141.03,3.30801398]
[1763202090918,3.39,141.09,141.03,3.30801398]
[1763202092629,3.39,141.08,141.03,3.30801398]
[1763202093022,2.4897029,141.07,141.03,3.30801398]
[1763202093219,5.8797029,141.07,141.03,3.30801398]
[1763202093627,2.4897029,141.09,141.03,3.30801398]
[1763202094228,5.7697029,141.09,141.03,3.30801398]
[1763202094728,3.28,141.09,141.03,3.30801398]
[1763202094933,5.7697029,141.11,141.03,3.30801398]
[1763202095226,3.28,141.11,141.03,3.30801398]
[1763202098930,5.7697029,141.11,141.03,3.30801398]
[1763202102728,3.28,141.11,141.03,3.30801398]
[1763202102930,5.7697029,141.11,141.03,3.30801398]
[1763202103433,74.28,141.12,141.03,3.30801398]
[1763202103627,74.28,141.12,141.07,3.1]
[1763202107032,5.7697029,141.17,141.07,5.5897029]
[1763202107336,3.28,141.16,141.12,3.1]
[1763202108738,13.0497029,141.19,141.12,3.1]
[1763202109036,3.28,141.18,141.15,3.1]
[1763202109237,7.28,141.19,141.15,3.1]
[1763202109436,10.56,141.19,141.15,3.1]
[1763202109834,3.28,141.18,141.15,3.1]
[1763202111240,3.28,141.16,141.14,0.04809257]
[1763202113233,5.7697029,141.2,141.14,3.14809257]
[1763202113434,3.28,141.2,141.17,3.1]
[1763202113739,3.28,141.2,141.17,3.15367024]
[1763202114141,2.4897029,141.22,141.17,3.15367024]
[1763202114142,3.28,141.21,141.17,3.15367024]
[1763202114341,3.28,141.24,141.17,3.15367024]
[1763202118444,3.28,141.27,141.17,3.15367024]
[1763202118646,3.28,141.27,141.21,3.14909065]
[1763202119646,5.7697029,141.27,141.21,3.14909065]
[1763202120437,2.4897029,141.29,141.21,3.14909065]
[1763202120637,3.28,141.28,141.24,3.14767591]
[1763202121749,3.28,141.27,141.24,3.14767591]
[1763202121942,5.7697029,141.28,141.24,3.14767591]
[1763202122148,3.28,141.27,141.24,3.14767591]
[1763202122341,5.7697029,141.3,141.24,3.14767591]
[1763202125745,5.6997029,141.33,141.24,3.14767591]
[1763202125944,3.21,141.33,141.28,3.1]
[1763202128249,5.6997029,141.36,141.28,3.1]
[1763202128445,3.21,141.35,141.31,3.14914152]
[1763202128839,2.4897029,141.37,141.31,3.14914152]
[1763202131252,3.21,141.34,141.31,3.14914152]
[1763202131554,3.21,141.32,141.31,0.04914152]
[1763202132450,3.19,141.34,141.31,0.04914152]
[1763202134654,9.33388781,141.37,141.31,3.13914152]
[1763202135456,3.19,141.37,141.31,3.13914152]
[1763202136757,70.68,141.39,141.31,3.13914152]
[1763202137558,3.19,141.4,141.31,3.13914152]
[1763202137852,3.19,141.4,141.27,27.46388781]
[1763202137853,3.19,141.4,141.34,3.13513064]
[1763202138057,9.33388781,141.43,141.34,3.13513064]
[1763202138258,3.19,141.42,141.37,3.14161589]
[1763202138554,3.19,141.42,141.37,0.05161589]
[1763202140256,3.19,141.39,141.37,0.05161589]
[1763202140859,3.19,141.42,141.37,0.05161589]
[1763202143853,3.19,141.4,141.37,0.05161589]
[1763202145755,4.61,141.4,141.31,3.09]
[1763202146060,3.19,141.39,141.31,3.09]
[1763202146755,3.19,141.35,141.34,0.05420623]
[1763202146961,3.19,141.34,141.22,3.09]
[1763202147957,3.24310527,141.29,141.27,0.05382154]
[1763202148160,3.24063445,141.29,141.27,0.04695916]
[1763202148760,0.05063445,141.29,141.27,0.04695916]
[1763202151564,0.05063445,141.29,141.27,3.13695916]
[1763202152260,3.24063445,141.29,141.27,0.04695916]
[1763202152761,0.05063445,141.29,141.27,0.04695916]
[1763202153464,0.05063445,141.29,141.27,3.13695916]
[1763202154566,3.17063445,141.29,141.27,0.04695916]
[1763202154864,0.05063445,141.29,141.27,3.41695916]
[1763202155465,3.17063445,141.29,141.27,0.04695916]
[1763202156160,0.05063445,141.29,141.27,3.41695916]
[1763202156561,4.75872713,141.29,141.27,0.04695916]
[1763202156773,3.12,141.28,141.27,0.04695916]
[1763202157671,0.05063445,141.29,141.27,3.41695916]
[1763202159077,3.17063445,141.29,141.27,0.04695916]
[1763202160676,4.75872713,141.29,141.27,0.04695916]
[1763202160871,3.12,141.28,141.27,0.04695916]
[1763202165580,3.12,141.28,141.21,3.37]
[1763202166582,3.12,141.25,141.23,0.04893121]
[1763202167279,0.04630812,141.26,141.23,3.41893121]
[1763202174087,17.5221136,141.47,141.24,3.37]
[1763202174088,3.12,141.33,141.24,3.37]
[1763202175082,0.05394203,141.3,141.28,3.37]
[1763202178091,3.17394203,141.3,141.27,0.05428986]
[1763202178290,3.17394203,141.3,141.27,3.42428986]
[1763202178989,3.17394203,141.3,141.27,0.05428986]
[1763202180294,3.17394203,141.3,141.27,3.42428986]
[1763202180991,3.17394203,141.3,141.27,0.05428986]
[1763202183688,1.58834327,141.28,141.27,0.05428986]
[1763202183890,3.31,141.27,141.21,3.37]
[1763202184192,3.31,141.25,141.2,4.91834327]
[1763202184796,3.31,141.23,141.21,0.05224332]
[1763202185195,0.05365734,141.24,141.21,3.38224332]
[1763202187593,3.36365734,141.24,141.21,0.05224332]
[1763202189698,3.31,141.21,141.13,6.49027658]
[1763202189897,1.58834327,141.22,141.1,1.58834327]
[1763202189898,1.58834327,141.15,141.1,9.82027658]
[1763202190196,1.58834327,141.15,141.1,3.33]
[1763202190197,3.31,141.14,141.1,3.33]
[1763202190592,3.31,141.14,141.09,6.49027658]
[1763202190789,4.89834327,141.11,141.1,0.04850174]
[1763202191090,3.21,141.1,141.09,0.05399536]
[1763202191291,0.05021741,141.12,141.09,3.39399536]
[1763202193797,3.21,141.17,141.11,4.92834327]
[1763202193997,3.21,141.15,141.11,3.34]
[1763202194697,0.04897513,141.14,141.12,0.04766826]
[1763202195399,3.21,141.13,141.12,0.04766826]
[1763202203899,3.21,141.13,141.07,3.34]
[1763202204804,3.21,141.13,141.09,0.05364408]
[1763202205300,0.04897513,141.14,141.09,3.39364408]
[1763202205604,3.25897513,141.14,141.09,3.39364408]
[1763202207605,0.04897513,141.14,141.09,3.39364408]
[1763202210210,3.25897513,141.14,141.09,3.39364408]
[1763202210609,0.04897513,141.14,141.09,3.39364408]
[1763202224636,3.28897513,141.14,141.09,3.39364408]
[1763202228237,3.28897513,141.14,141.1,3.22]
[1763202231134,3.28897513,141.14,141.1,9.71027658]
[1763202233239,3.28897513,141.14,141.11,6.49027658]
[1763202234041,3.28897513,141.14,141.12,6.49027658]
[1763202237945,0.04897513,141.14,141.12,9.71027658]
[1763202238345,3.28897513,141.14,141.12,9.71027658]
[1763202238541,3.28897513,141.14,141.12,6.49027658]
[1763202239947,3.28897513,141.14,141.11,6.49027658]
[1763202240142,5.77591556,141.14,141.11,6.49027658]
[1763202240349,2.48694043,141.12,141.1,6.49027658]
[1763202240546,3.24,141.11,141.09,6.54392066]
[1763202240749,3.24,141.13,141.09,3.27364408]
[1763202241043,3.24,141.13,141.1,9.71027658]
[1763202241340,3.24,141.13,141.09,6.54392066]
[1763202241545,3.24,141.13,141.09,9.76392066]
[1763202242246,3.24,141.13,141.1,3.22]
[1763202245049,0.04897513,141.14,141.11,3.09]
[1763202245245,3.42897513,141.14,141.11,3.09]
[1763202245747,0.04897513,141.14,141.11,3.09]
[1763202245950,0.04897513,141.14,141.13,9.58027658]
[1763202246744,0.04897513,141.14,141.13,11.00027658]
[1763202247046,5.86694043,141.21,141.14,3.09]
[1763202247246,5.86694043,141.21,141.15,9.71835082]
[1763202247849,3.38,141.2,141.15,9.71835082]
[1763202248047,3.38,141.18,141.17,0.05370021]
[1763202248447,3.42906959,141.19,141.17,0.05370021]
[1763202249251,3.42906959,141.19,141.17,3.14370021]